fUSD/lending_fUSD_20260331
["ID","MTS","AMOUNT","RATE_DAILY","PERIOD"]
[419163486,1774980640560,-250.0,0.00012506,2]
[419163487,1774980640569,-261.56558144,0.00012506,2]
[419163488,1774980640578,-1284.6571,0.00012513,2]
[419163489,1774980640588,-2500.0,0.00012598,2]
[419163490,1774980640597,-150.0,0.000126,2]
[419163491,1774980640606,-300.0,0.00012611,2]
[419163492,1774980640615,-1200.0,0.00012611,2]
[419163493,1774980640625,-24093.76289795,0.00012613,2]
[419163494,1774980640634,-19741.21027128,0.00012613,2]
[419163495,1774980640644,-500.0,0.00012673,2]
[419163496,1774980640653,-500.0,0.00012673,2]
[419163497,1774980640662,-551.21950508,0.00012673,2]
[419163498,1774980640671,-167.56167761,0.00012673,2]
[419163499,1774980640680,-500.0,0.00012673,2]
[419163500,1774980640689,-347.60509807,0.00012673,2]
[419163501,1774980640698,-500.0,0.00012673,2]
[419163502,1774980640707,-421.67237584,0.00012673,2]
[419163503,1774980640717,-500.0,0.00012673,2]
[419163504,1774980640726,-500.0,0.00012673,2]
[419163505,1774980640735,-500.0,0.00012673,2]
[419163506,1774980640745,-503.60056234,0.00012673,2]
[419163507,1774980640754,-500.06641035,0.00012673,2]
[419163508,1774980640762,-500.0,0.00012673,2]
[419163509,1774980640771,-409.99851693,0.00012673,2]
[419163510,1774980640780,-500.0,0.00012673,2]
[419163511,1774980640789,-500.0,0.00012673,2]
[419163512,1774980640798,-500.0,0.00012673,2]
[419163513,1774980640807,-500.15860624,0.00012673,2]
[419163514,1774980640817,-500.0,0.00012673,2]
[419163515,1774980640825,-500.0,0.00012673,2]
[419163516,1774980640834,-500.0,0.00012673,2]
[419163517,1774980640843,-500.0,0.00012673,2]
[419163518,1774980640853,-240.20283738,0.00012685,2]
[419163519,1774980640862,-150.0,0.00012685,2]
[419163520,1774980640872,-200.0,0.00012764,2]
[419163521,1774980640880,-151.0,0.00012836,2]
[419163522,1774980640890,-176.23,0.00012925,2]
[419163523,1774980640899,-249.44,0.0001294,2]
[419163524,1774980640908,-500.0,0.00012947,2]
[419163525,1774980640917,-19741.21027124,0.00012979,2]
[419163526,1774980640926,-161453.48,0.00013023,2]
[419163527,1774980640936,-386.01505148,0.00013221,2]
[419163528,1774980640944,-1000.0,0.00013221,2]
[419163529,1774980640954,-1000.0,0.00013221,2]
[419163530,1774980640963,-1000.0,0.00013221,2]
[419163531,1774980640971,-455.14370669,0.00013221,2]
[419163532,1774980640980,-1000.0,0.00013221,2]
[419163533,1774980640990,-1000.0,0.00013221,2]
[419163534,1774980640999,-1002.6541819,0.00013221,2]
[419163535,1774980641008,-1000.0,0.00013221,2]
[419163536,1774980641017,-1000.0,0.00013221,2]
[419163537,1774980641026,-1000.0,0.00013221,2]
[419163538,1774980641036,-1000.0,0.00013221,2]
[419163539,1774980641045,-500.0,0.00013221,2]
[419163540,1774980641055,-433.0,0.0001331,2]
[419163542,1774980641064,-19741.21027124,0.00013345,2]
[419163543,1774980641073,-1673.0,0.00013348,2]
[419163545,1774980641082,-320.0,0.00013349,2]
[419163547,1774980641091,-1750.0,0.00013374,2]
[419163548,1774980641100,-243.98897865,0.00013375,2]
[419163549,1774980641109,-474.86270361,0.00013495,2]
[419163550,1774980641118,-249.44,0.00013556,2]
[419163552,1774980641127,-150.0,0.00013613,2]
[419163553,1774980641139,-272.17771,0.00013614,2]
[419163554,1774980641148,-500.0,0.00013698,2]
[419163555,1774980641157,-227.81869886,0.00013698,2]
[419163556,1774980641166,-166.66,0.00013699,2]
[419163557,1774980641175,-162.71,0.00013699,2]
[419163558,1774980641184,-19741.21027124,0.00013711,2]
[419163559,1774980641193,-2500.0,0.0001375,2]
[419163560,1774980641202,-2500.0,0.0001375,2]
[419163561,1774980641211,-2500.0,0.0001375,2]
[419163562,1774980641220,-2500.0,0.0001375,2]
[419163563,1774980641229,-2500.0,0.0001375,2]
[419163564,1774980641238,-195.0,0.0001375,2]
[419163565,1774980641247,-195.0,0.0001375,2]
[419163566,1774980641256,-195.0,0.0001375,2]
[419163567,1774980641265,-195.0,0.0001375,2]
[419163568,1774980641274,-195.0,0.0001375,2]
[419163569,1774980641284,-250.0,0.0001375,2]
[419163570,1774980641295,-300.0,0.0001375,2]
[419163571,1774980641305,-1500.0,0.00013768,2]
[419163572,1774980641315,-503.0948792,0.00013768,2]
[419163573,1774980641324,-1500.0,0.00013768,2]
[419163574,1774980641333,-1500.0,0.00013768,2]
[419163575,1774980641343,-1500.0,0.00013768,2]
[419163576,1774980641352,-1500.0,0.00013768,2]
[419163577,1774980641362,-1500.0,0.00013768,2]
[419163578,1774980641371,-1500.0,0.00013768,2]
[419163579,1774980641380,-1500.0,0.00013768,2]
[419163580,1774980641390,-166.66,0.00013836,2]
[419163581,1774980641400,-420.0,0.00013836,2]
[419163582,1774980641410,-1680.0,0.00013872,2]
[419163583,1774980641420,-1489.4,0.00013909,2]
[419163584,1774980641429,-166.66,0.00013973,2]
[419163585,1774980641438,-29556.70327678,0.00013978,2]
[419163586,1774980641448,-195.6658,0.00014,7]
[419163587,1774980641457,-502.0,0.00014,2]
[419163588,1774980641467,-19741.21027124,0.00014077,2]
[419163589,1774980641476,-166.66,0.0001411,2]
[419163590,1774980641486,-249.44,0.00014172,2]
[419163591,1774980641495,-166.66,0.00014247,2]
[419163592,1774980641504,-1003.50570299,0.00014316,2]
[419163593,1774980641514,-2000.0,0.00014316,2]
[419163594,1774980641524,-2000.0,0.00014316,2]
[419163595,1774980641535,-2000.0,0.00014316,2]
[419163596,1774980641546,-2000.0,0.00014316,2]
[419163597,1774980641556,-2000.0,0.00014316,2]
[419163598,1774980641565,-2000.0,0.00014316,2]
[419163599,1774980641575,-2000.0,0.00014316,2]
[419163600,1774980641584,-166.66,0.00014384,2]
[419163601,1774980641594,-500.0,0.00014399,2]
[419163602,1774980641603,-19741.21027124,0.00014442,2]
[419163603,1774980641612,-1000.0,0.000145,2]
[419163604,1774980641621,-248.0,0.00014555,2]
[419163605,1774980641630,-502.0,0.00014767,2]
[419163606,1774980641640,-249.44,0.00014789,2]
[419163607,1774980641650,-19741.21027124,0.00014808,2]
[419163608,1774980641659,-202.19275728,0.00015006,2]
[419163609,1774980641669,-160.0,0.00015021,7]
[419163610,1774980641678,-372.828785,0.00015021,7]
[419163611,1774980641688,-585.657571,0.00015021,7]
[419163612,1774980641697,-165.723536,0.00015037,7]
[419163613,1774980641707,-289.941222,0.00015037,7]
[419163614,1774980641716,-700.0,0.00015082,2]
[419163615,1774980641725,-2300.0,0.00015082,2]
[419163616,1774980641734,-2469.0,0.00015089,2]
[419163617,1774980641743,-6013.0,0.00015089,2]
[419163618,1774980641752,-415.0,0.00015089,2]
[419163619,1774980641761,-19741.21027124,0.00015174,2]
[419163620,1774980641771,-587.0,0.00015179,2]
[419163621,1774980641780,-1372.13072239,0.00015187,2]
[419163622,1774980642097,-623.58710448,0.00015187,2]
[419163623,1774980642107,-1235.18214925,0.00015187,2]
[419163624,1774980642116,-500.0,0.00015187,2]
[419163625,1774980642126,-200.0,0.00015187,2]
[419163626,1774980642135,-151.0,0.00015187,2]
[419163627,1774980642144,-500.0,0.00015187,2]
[419163628,1774980642154,-181.08010149,0.00015187,2]
[419163629,1774980642163,-500.0,0.00015187,2]
[419163630,1774980642173,-250.0,0.00015187,2]
[419163631,1774980642182,-500.0,0.00015187,2]
[419163632,1774980642191,-200.0,0.00015187,2]
[419163633,1774980642201,-151.0,0.00015187,2]
[419163634,1774980642210,-181.08010149,0.00015187,2]
[419163635,1774980642218,-160.0,0.00015187,2]
[419163636,1774980642227,-599.60298507,0.00015187,2]
[419163637,1774980642236,-151.225,0.00015244,2]
[419163638,1774980642246,-3519.0,0.00015244,2]
[419163639,1774980642255,-2351.0,0.00015259,2]
[419163640,1774980642264,-2043.68287809,0.00015288,2]
[419163641,1774980642273,-1489.4,0.00015299,2]
[419163642,1774980642282,-500.0,0.00015342,2]
[419163643,1774980642291,-602.4614549,0.00015342,2]
[419163644,1774980642300,-29556.70327678,0.00015343,2]
[419163645,1774980642310,-4206.76,0.00015388,2]
[419163646,1774980642319,-255.234,0.000154,12]
[419163647,1774980642329,-249.44,0.00015405,2]
[419163648,1774980642338,-502.0,0.00015535,3]
[419163649,1774980642347,-19741.21027124,0.0001554,2]
[419163650,1774980642356,-226.239122,0.00015581,7]
[419163651,1774980642366,-1135.969,0.000156,2]
[419163652,1774980642375,-156.802,0.000156,2]
[419163653,1774980642385,-782.95,0.00015684,2]
[419163654,1774980642402,-471.66,0.00015684,2]
[419163655,1774980642417,-4255.5,0.00015684,2]
[419163656,1774980642426,-825.0,0.00015781,2]
[419163657,1774980642436,-151.1949861,0.00015882,2]
[419163658,1774980642446,-151.0,0.00015899,2]
[419163659,1774980642456,-151.0,0.00015899,2]
[419163660,1774980642467,-151.0,0.00015899,2]
[419163661,1774980642476,-151.0,0.00015899,2]
[419163662,1774980642486,-26281.0044,0.000159,2]
[419163663,1774980642496,-532.1404,0.000159,2]
[419163664,1774980642506,-1000.0,0.000159,2]
[419163665,1774980642516,-527.2156628,0.000159,2]
[419163666,1774980642525,-283.62966856,0.000159,2]
[419163667,1774980642535,-19741.21027124,0.00015906,2]
[419163668,1774980642545,-869.0,0.00015973,2]
[419163669,1774980642555,-8316.9208804,0.0001598,2]
[419163670,1774980642565,-785.98063772,0.00015994,2]
[419163671,1774980642575,-49315.48488411,0.00015999,2]
[419163672,1774980642585,-151.0,0.00015999,2]
[419163673,1774980642595,-213.09738992,0.00015999,2]
[419163674,1774980642605,-588.19848315,0.00015999,5]
[419163675,1774980642615,-1097286.48305698,0.00016,2]
[419163676,1774980642624,-250.0,0.00016,2]
[419163677,1774980642633,-250.0,0.00016,2]
[419163678,1774980642642,-250.0,0.00016,2]
[419163680,1774980642651,-80951.96319156,0.00016,2]
[419163689,1774980643681,-1316.30482803,0.00016,2]
[419163690,1774980643693,-7022.56090723,0.00016,2]
[419163691,1774980643716,-228.92651502,9.499e-05,2]
[419163692,1774980643725,-77.14248498,0.00016,2]
[419163694,1774980643814,-506580.16858013,0.00016,2]
[419163695,1774980643824,-2264.18,0.00016,14]
[419163696,1774980643834,-131939.52907779,0.00016,2]
[419163697,1774980643844,-307854.48372507,0.00016,2]
[419163698,1774980643854,-3306.50468095,0.00016,2]
[419163699,1774980643863,-317434.73572611,0.00016,2]
[419163700,1774980643873,-151.0,0.00016,2]
[419163701,1774980643882,-151.0,0.00016,2]
[419163702,1774980643891,-151.0,0.00016,2]
[419163703,1774980643901,-151.0,0.00016,2]
[419163704,1774980643911,-151.0,0.00016,2]
[419163705,1774980643920,-151.0,0.00016,2]
[419163706,1774980643930,-151.0,0.00016,2]
[419163707,1774980643941,-158.312847,0.00016,2]
[419163708,1774980643951,-151.0,0.00016,2]
[419163709,1774980643960,-151.0,0.00016,2]
[419163710,1774980643969,-191.128468,0.00016,2]
[419163711,1774980643979,-151.0,0.00016,2]
[419163712,1774980643989,-151.0,0.00016,2]
[419163713,1774980643998,-151.0,0.00016,2]
[419163714,1774980644007,-151.0,0.00016,2]
[419163715,1774980644016,-239.392306,0.00016,2]
[419163716,1774980644026,-239.392306,0.00016,2]
[419163717,1774980644035,-239.392306,0.00016,2]
[419163718,1774980644044,-239.392306,0.00016,2]
[419163719,1774980644053,-239.392306,0.00016,2]
[419163720,1774980644062,-239.392306,0.00016,2]
[419163721,1774980644458,-239.392306,0.00016,2]
[419163722,1774980644467,-239.392306,0.00016,2]
[419163723,1774980644486,-239.392306,0.00016,2]
[419163724,1774980644497,-239.392306,0.00016,2]
[419163725,1774980644508,-239.392306,0.00016,2]
[419163726,1774980644518,-239.392306,0.00016,2]
[419163727,1774980644528,-242.58880125,0.00016,2]
[419163728,1774980644538,-239.392306,0.00016,2]
[419163729,1774980644548,-239.392306,0.00016,2]
[419163730,1774980644559,-239.392306,0.00016,2]
[419163731,1774980644570,-239.392306,0.00016,2]
[419163732,1774980644579,-442726.68903647,0.00016,2]
[419163733,1774980644611,-29948.97847713,0.00016,2]
[419163734,1774980644993,-439.25976958,0.00016,2]
[419163735,1774980645006,-984.49388968,0.00016,2]
[419163740,1774980645866,-150.45773578,0.00013699,2]
[419163741,1774980645876,-310.84792069,0.000159,2]
[419163742,1774980645885,-129001.72122832,0.00016,2]
[419163743,1774980645978,-418.32,0.00016,2]
[419163744,1774980645989,-793.1136,0.00016,2]
[419163745,1774980646000,-12502.25248108,0.00016,2]
[419163746,1774980646012,-41263.62001476,0.00016,2]
[419163747,1774980646232,-2112.0,0.00016,2]
[419163748,1774980646244,-800.135,0.00016,2]
[419163749,1774980646296,-567.1714759,0.00016,2]
[419163750,1774980646343,-46249.356553,0.00016,2]
[419163759,1774980821917,169.0,0.00017,15]
[419163760,1774980822034,156.0,0.00017,15]
[419163761,1774980822291,156.0,0.00017,15]
[419163762,1774980822547,156.0,0.00017,15]
[419163763,1774980822790,156.0,0.00017,15]
[419163764,1774980823024,156.0,0.00017,15]
[419163765,1774980823296,156.0,0.00017,15]
[419163766,1774980823540,156.0,0.00017,15]
[419163767,1774980823783,156.0,0.00017,15]
[419163768,1774980824022,156.0,0.00017,15]
[419163769,1774980824272,156.0,0.00017,15]
[419163770,1774980824526,156.0,0.00017,15]
[419163771,1774980824799,156.0,0.00017,15]
[419163772,1774980825043,156.0,0.00017,15]
[419163773,1774980825287,156.0,0.00017,15]
[419163774,1774980825536,156.0,0.00017,15]
[419163775,1774980825778,156.0,0.00017,15]
[419163776,1774980826028,156.0,0.00017,15]
[419163777,1774980826244,156.0,0.00017,15]
[419163778,1774980826502,156.0,0.00017,15]
[419163779,1774980826769,156.0,0.00017,15]
[419163780,1774980827024,156.0,0.00017,15]
[419163781,1774980827275,156.0,0.00017,15]
[419163782,1774980829084,164.0,0.00017,15]
[419163783,1774980829127,162.0,0.00017,15]
[419163784,1774980829192,162.0,0.00017,15]
[419163785,1774980961761,332.8002,0.000166,17]
[419163786,1774981034039,332.742,0.000165,17]
[419163787,1774981106742,332.6837,0.000161,17]
[419163788,1774981179499,332.6517,0.000161,17]
[419163790,1774981237757,153.52,7.886e-05,2]
[419163791,1774981237900,153.52,8.301e-05,2]
[419163792,1774981254651,332.5933,0.000147,17]
[419163793,1774981254930,433.6983,0.000162,22]
[419163794,1774981325832,332.4587,0.000147,17]
[419163795,1774981326069,433.4641,0.000162,22]
[419163796,1774981341372,206.73,8.431e-05,2]
[419163797,1774981361173,-150.0,8.716e-05,2]
[419163798,1774981396315,332.3237,0.000144,17]
[419163799,1774981396543,433.2296,0.000158,22]
[419163800,1774981470193,165.69,8.519e-05,2]
[419163801,1774981470529,332.1886,0.000144,17]
[419163802,1774981470748,432.9946,0.000158,22]
[419163803,1774981541037,332.0531,0.000143,17]
[419163804,1774981541235,432.7593,0.000158,22]
[419163805,1774981612988,331.9175,0.000142,17]
[419163806,1774981613199,432.5235,0.000157,22]
[419163807,1774981639086,-3.52,8.716e-05,2]
[419163808,1774981639109,-459.36606799,8.856e-05,2]
[419163809,1774981640139,-840.63393201,8.856e-05,2]
[419163810,1774981640160,-153.52,9.131e-05,2]
[419163811,1774981640182,-334.03,9.19e-05,2]
[419163812,1774981640204,-700.0,9.257e-05,2]
[419163813,1774981640228,-153.52,9.546e-05,2]
[419163814,1774981640249,-250.0,9.588e-05,2]
[419163815,1774981640270,-1115.91234962,9.658e-05,2]
[419163816,1774981649112,-1213.00765038,9.658e-05,2]
[419163817,1774981649142,-150.0,9.8e-05,2]
[419163818,1774981649171,-110.07788629,9.962e-05,2]
[419163819,1774981684302,331.7548,0.000153,17]
[419163820,1774981684511,432.2409,0.000167,22]
[419163821,1774981754710,331.6185,0.000152,17]
[419163822,1774981754940,432.0043,0.000167,22]
[419163823,1774981755082,-43.44211371,9.962e-05,2]
[419163824,1774981755104,-161.90522655,0.0001,2]
[419163825,1774981755127,-298.97,0.00010087,2]
[419163826,1774981755151,-153.52,0.00010377,2]
[419163827,1774981755179,-500.0,0.00010629,3]
[419163828,1774981755211,-908.86,0.00010652,2]
[419163829,1774981755245,-187.16116818,0.00010692,2]
[419163830,1774981755283,-153.52,0.00010792,2]
[419163831,1774981755303,-500.0,0.00010805,2]
[419163832,1774981755323,-150.0,0.000109,2]
[419163833,1774981755343,-150.0,0.00010959,2]
[419163834,1774981755362,-166.66,0.00011079,2]
[419163835,1774981755383,-153.52,0.00011207,2]
[419163836,1774981755403,-300.0,0.00011292,2]
[419163837,1774981755422,-1200.0,0.00011292,2]
[419163838,1774981755442,-877.63,0.00011293,2]
[419163839,1774981755462,-150.0,0.00011293,2]
[419163840,1774981755481,-150.0,0.00011293,2]
[419163841,1774981755500,-150.0,0.00011293,2]
[419163842,1774981755519,-150.0,0.00011293,2]
[419163843,1774981755539,-150.0,0.00011293,2]
[419163844,1774981755558,-150.0,0.00011293,2]
[419163845,1774981755578,-150.0,0.00011293,2]
[419163846,1774981755598,-150.0,0.00011293,2]
[419163847,1774981755617,-150.0,0.00011293,2]
[419163848,1774981755637,-154.85778934,0.00011293,2]
[419163849,1774981755657,-150.0,0.00011293,2]
[419163850,1774981755676,-2249.65800451,0.000113,2]
[419163851,1774981756100,-324.7442954,0.000113,2]
[419163852,1774981756216,-15727.59770009,0.000113,2]
[419163853,1774981756237,-1200.0,0.00011399,2]
[419163854,1774981756257,-5534.0,0.000114,3]
[419163855,1774981756279,-166.66,0.00011445,2]
[419163856,1774981756300,-150.0,0.000115,2]
[419163857,1774981756320,-5534.0,0.000115,5]
[419163858,1774981756340,-300.0,0.00011505,2]
[419163859,1774981756359,-300.0,0.00011505,2]
[419163860,1774981756379,-1838.28,0.00011507,2]
[419163861,1774981756404,-150.0,0.00011544,2]
[419163862,1774981756424,-877.63,0.00011567,2]
[419163863,1774981756444,-150.0,0.00011607,2]
[419163864,1774981756465,-153.52,0.00011622,2]
[419163865,1774981756485,-500.67072139,0.00011693,2]
[419163866,1774981756506,-151.0,0.00011693,2]
[419163867,1774981756528,-151.0,0.00011693,2]
[419163868,1774981756550,-151.0,0.00011693,2]
[419163869,1774981756572,-151.0,0.00011693,2]
[419163870,1774981756593,-151.0,0.00011693,2]
[419163871,1774981756614,-151.0,0.00011693,2]
[419163872,1774981756635,-151.0,0.00011693,2]
[419163873,1774981756655,-151.0,0.00011693,2]
[419163874,1774981756676,-195.4742153,0.00011693,2]
[419163875,1774981756697,-151.0,0.00011693,2]
[419163876,1774981756720,-151.0,0.00011693,2]
[419163877,1774981756741,-151.0,0.00011693,2]
[419163878,1774981756762,-151.0,0.00011693,2]
[419163879,1774981756783,-151.0,0.00011693,2]
[419163880,1774981756803,-151.0,0.00011693,2]
[419163881,1774981756823,-500.0,0.00011693,2]
[419163882,1774981756844,-151.0,0.00011693,2]
[419163883,1774981756865,-151.0,0.00011693,2]
[419163884,1774981756886,-500.0,0.00011693,2]
[419163885,1774981756907,-151.0,0.00011693,2]
[419163886,1774981756927,-151.0,0.00011693,2]
[419163887,1774981756947,-151.0,0.00011693,2]
[419163888,1774981756970,-151.0,0.00011693,2]
[419163889,1774981756991,-151.0,0.00011693,2]
[419163890,1774981757015,-500.0,0.00011693,2]
[419163891,1774981757039,-500.0,0.00011693,2]
[419163892,1774981757063,-500.0,0.00011693,2]
[419163893,1774981757084,-500.0,0.00011693,2]
[419163894,1774981757105,-500.0,0.00011693,2]
[419163895,1774981757127,-500.0,0.00011693,2]
[419163896,1774981757152,-500.0,0.00011693,2]
[419163897,1774981757173,-1243.57659104,0.00011693,2]
[419163898,1774981757195,-150.0,0.00011711,2]
[419163899,1774981757217,-150.0,0.00011711,2]
[419163900,1774981757238,-150.0,0.00011711,2]
[419163901,1774981757259,-150.0,0.00011795,2]
[419163902,1774981757282,-166.66,0.0001181,2]
[419163903,1774981757303,-151.0,0.00011823,2]
[419163904,1774981757325,-877.63,0.00011841,2]
[419163905,1774981757348,-151.36,0.00011848,2]
[419163906,1774981757370,-151.0,0.00011848,2]
[419163907,1774981757393,-150.0,0.00011921,2]
[419163908,1774981757416,-150.0,0.00011921,2]
[419163909,1774981757438,-418.32654467,0.00011928,2]
[419163910,1774981757460,-153.52,0.00012037,2]
[419163911,1774981757483,-150.0,0.00012046,2]
[419163912,1774981757504,-877.63,0.00012115,2]
[419163913,1774981757527,-150.0,0.0001213,2]
[419163914,1774981757548,-150.0,0.0001213,2]
[419163915,1774981757569,-150.0,0.0001213,2]
[419163916,1774981757590,-166.66,0.00012176,2]
[419163917,1774981757611,-500.0,0.00012217,2]
[419163918,1774981757632,-150.0,0.00012234,2]
[419163919,1774981757654,-153.2,0.00012244,2]
[419163920,1774981757676,-150.0,0.00012297,2]
[419163921,1774981757698,-195.4071,0.000123,7]
[419163922,1774981757726,-187.16116818,0.00012337,2]
[419163923,1774981757753,-877.63,0.00012389,2]
[419163924,1774981757775,-453.7987,0.000124,2]
[419163925,1774981757796,-300.0,0.00012405,2]
[419163926,1774981757817,-1680.0,0.00012405,2]
[419163927,1774981757838,-5998.16074606,0.00012412,2]
[419163928,1774981757861,-168.70931692,0.00012437,2]
[419163929,1774981757883,-23661.40219737,0.00012442,2]
[419163930,1774981757906,-153.52,0.00012452,2]
[419163931,1774981757931,-500.0,0.00012512,2]
[419163932,1774981757956,-500.0,0.00012512,2]
[419163933,1774981757982,-500.0,0.00012512,2]
[419163934,1774981758008,-500.0,0.00012512,2]
[419163935,1774981758034,-500.0,0.00012512,2]
[419163936,1774981758060,-500.0,0.00012512,2]
[419163937,1774981758085,-368.60230738,0.00012512,2]
[419163938,1774981758109,-233.34486818,0.00012512,2]
[419163939,1774981758135,-500.0,0.00012512,2]
[419163940,1774981758156,-414.8732202,0.00012512,2]
[419163941,1774981758179,-500.0,0.00012512,2]
[419163942,1774981758201,-500.0,0.00012512,2]
[419163943,1774981758222,-500.0,0.00012512,2]
[419163944,1774981758244,-249.33728936,0.00012512,2]
[419163945,1774981758266,-189.44000496,0.00012512,2]
[419163946,1774981758293,-500.0,0.00012512,2]
[419163947,1774981758319,-500.0,0.00012512,2]
[419163948,1774981758350,-426.61846658,0.00012512,2]
[419163949,1774981758376,-500.0,0.00012512,2]
[419163950,1774981758402,-500.0,0.00012512,2]
[419163951,1774981758428,-500.0,0.00012512,2]
[419163952,1774981758455,-579.72532016,0.00012512,2]
[419163953,1774981758477,-500.0,0.00012512,2]
[419163954,1774981758499,-218.96771197,0.00012512,2]
[419163955,1774981758525,-500.0,0.00012512,2]
[419163956,1774981758551,-500.0,0.00012512,2]
[419163957,1774981758573,-500.0,0.00012512,2]
[419163958,1774981758595,-564.78239252,0.00012512,2]
[419163959,1774981758622,-500.0,0.00012512,2]
[419163960,1774981758649,-500.0,0.00012512,2]
[419163961,1774981758675,-500.0,0.00012512,2]
[419163962,1774981758702,-500.0,0.00012512,2]
[419163963,1774981758728,-500.0,0.00012512,2]
[419163964,1774981758760,-500.0,0.00012512,2]
[419163965,1774981758782,-195.35161709,0.00012512,2]
[419163966,1774981758804,-500.0,0.00012512,2]
[419163967,1774981758827,-500.0,0.00012512,2]
[419163968,1774981758850,-543.70375005,0.00012512,2]
[419163969,1774981758872,-500.0,0.00012512,2]
[419163970,1774981758895,-165.14278835,0.00012512,2]
[419163971,1774981758921,-500.0,0.00012512,2]
[419163972,1774981758948,-500.0,0.00012512,2]
[419163973,1774981758978,-500.0,0.00012512,2]
[419163974,1774981759006,-500.0,0.00012512,2]
[419163975,1774981759032,-500.0,0.00012512,2]
[419163976,1774981759059,-500.0,0.00012512,2]
[419163977,1774981759087,-500.0,0.00012512,2]
[419163978,1774981759113,-211732.54006218,0.00012513,2]
[419163979,1774981761498,-7191.742054,0.00012513,2]
[419163980,1774981826930,331.4202,0.000168,17]
[419163984,1774981832054,-624.35787928,0.00012436,2]
[419163985,1774981832068,-1163.86463904,0.00012436,2]
[419163986,1774981832079,-618.52270866,0.00012512,2]
[419163987,1774981832093,-397.48756417,0.00012512,2]
[419163988,1774981832106,-183.98972717,0.00012512,2]
[419163989,1774981832116,-300.0,0.00012512,2]
[419163990,1774981832127,-300.0,0.00012512,2]
[419163991,1774981832136,-150.0,0.00012512,2]
[419163992,1774981832146,-375.46789101,0.00012513,2]
[419163993,1774981832159,-11168.81144696,0.00012513,2]
[419163994,1774981832178,-2319.81522465,0.00012513,2]
[419163995,1774981832189,-132953.4640212,0.00012513,2]
[419163996,1774981832199,-227.02109222,0.00012536,2]
[419163997,1774981832208,-332.23761724,0.00012537,2]
[419163998,1774981832218,-166.66,0.00012542,2]
[419163999,1774981832229,-150.0,0.00012548,2]
[419164000,1774981832238,-150.0,0.00012548,2]
[419164001,1774981832247,-150.0,0.00012548,2]
[419164002,1774981832256,-150.0,0.00012548,2]
[419164003,1774981832266,-150.0,0.00012548,2]
[419164004,1774981832275,-150.0,0.00012548,2]
[419164005,1774981832284,-150.0,0.00012548,2]
[419164006,1774981832293,-150.00000001,0.00012548,2]
[419164007,1774981832302,-150.0,0.00012548,2]
[419164008,1774981832311,-500.0,0.00012573,2]
[419164009,1774981832320,-332.23329004,0.00012573,2]
[419164010,1774981832330,-1452434.5236,0.00012573,2]
[419164011,1774981832339,-877.63,0.00012663,2]
[419164012,1774981832348,-756.2520975,0.00012667,2]
[419164013,1774981832358,-1400.0,0.000127,4]
[419164014,1774981832367,-150.0,0.000127,2]
[419164015,1774981832376,-2900.0,0.000128,4]